bitfinex-derivatives/quotes_ETHF0:USTF0_20260305
["timestamp","ask_amount","ask_price","bid_price","bid_amount"]
[1772724813362,0.00445863,2080.0,2078.2,0.55699991]
[1772724813565,0.55971582,2080.0,2078.4,0.55699991]
[1772724814262,0.55525719,2079.8,2077.9,0.55699991]
[1772724814764,0.55525719,2079.7,2077.9,0.55699991]
[1772724815265,0.00445863,2080.0,2078.1,0.55699991]
[1772724815565,0.00445863,2080.0,2078.3,0.55699991]
[1772724815760,0.00445863,2080.0,2078.5,0.55699991]
[1772724815956,5.72926519,2079.9,2078.5,0.55699991]
[1772724816160,0.55525719,2079.8,2078.5,0.55699991]
[1772724816561,0.00445863,2080.0,2078.5,0.55699991]
[1772724816562,0.55525719,2079.4,2078.5,0.55699991]
[1772724816755,0.55525719,2079.7,2078.5,0.55699991]
[1772724817659,6.28452238,2079.6,2078.5,0.55699991]
[1772724817965,0.55525719,2079.5,2078.5,0.55699991]
[1772724818458,0.55525719,2079.9,2077.9,0.55699991]
[1772724819060,0.55525719,2079.9,2078.1,0.55699991]
[1772724819459,0.00445863,2080.0,2078.3,0.55699991]
[1772724819460,0.55525719,2079.8,2078.3,0.55699991]
[1772724820161,0.55971582,2080.0,2078.3,0.55699991]
[1772724820356,0.00445863,2080.0,2078.5,0.55699991]
[1772724820563,0.00445863,2080.0,2078.7,0.55699991]
[1772724821062,0.89360767,2080.2,2078.9,0.55699991]
[1772724821265,1.44886486,2080.2,2078.9,0.55699991]
[1772724821464,1.44886486,2080.2,2079.0,0.55699991]
[1772724821863,5.72926519,2080.1,2079.0,0.55699991]
[1772724822065,0.00515351,2080.1,2079.0,0.55699991]
[1772724822760,0.54977717,2080.2,2079.2,0.55699991]
[1772724822965,0.40428635,2081.3,2079.4,0.55699991]
[1772724823161,0.55525719,2081.6,2079.7,0.55699991]
[1772724823367,0.55525719,2081.6,2079.9,0.55699991]
[1772724823562,0.55525719,2081.1,2079.9,0.55699991]
[1772724823765,0.55897898,2081.1,2079.9,0.00433194]
[1772724824264,0.55525719,2080.4,2079.9,0.00433194]
[1772724824765,0.55525719,2080.4,2079.5,0.55699991]
[1772724825162,5.72926519,2080.1,2079.2,0.55699991]
[1772724825364,0.55525719,2080.1,2079.2,0.55699991]
[1772724825564,5.72926519,2079.5,2078.4,0.55699991]
[1772724825768,0.00507346,2079.5,2078.4,0.56053768]
[1772724826064,0.70237431,2079.2,2078.2,0.55699991]
[1772724826367,0.70237431,2079.2,2077.7,0.55699991]
[1772724826559,5.72926519,2079.0,2077.7,0.55699991]
[1772724826765,0.70237431,2078.9,2077.7,0.55699991]
[1772724826965,0.70237431,2078.9,2077.7,0.56221393]
[1772724827166,0.66488893,2078.7,2077.7,0.56221393]
[1772724827671,0.66488893,2078.6,2077.7,0.56221393]
[1772724828766,0.66153354,2079.4,2077.7,0.56221393]
[1772724828966,2.44380612,2079.2,2077.7,0.56221393]
[1772724829370,2.44380612,2078.9,2077.7,0.56221393]
[1772724830069,2.44380612,2078.8,2077.7,0.56221393]
[1772724830469,8.17307131,2078.6,2077.7,0.56221393]
[1772724830670,2.44380612,2078.6,2077.7,0.56221393]
[1772724831064,2.44380612,2078.4,2077.7,0.00521402]
[1772724831571,8.17307131,2078.1,2077.7,0.00521402]
[1772724831770,2.44380612,2078.1,2077.7,0.00521402]
[1772724831972,5.72926519,2077.9,2077.4,2.65045615]
[1772724832172,2.44380612,2078.1,2077.5,6.76295496]
[1772724832472,5.72926519,2078.0,2076.9,2.65045615]
[1772724832672,2.44380612,2078.1,2077.1,2.65045615]
[1772724832873,2.44989328,2078.1,2077.3,2.65045615]
[1772724833068,2.44989328,2078.1,2077.4,6.76674857]
[1772724833267,8.17915847,2078.1,2077.5,6.76674857]
[1772724833465,2.44380612,2078.5,2077.6,6.77082564]
[1772724833669,2.44380612,2078.5,2077.3,2.65045615]
[1772724833870,2.44380612,2078.5,2077.4,6.77072221]
[1772724834070,2.44380612,2078.5,2077.5,6.77072221]
[1772724834271,2.44380612,2078.3,2077.6,6.77072221]
[1772724834475,2.44989906,2078.3,2077.3,2.65045615]
[1772724834776,5.56046437,2078.2,2077.4,6.77546204]
[1772724835082,2.44380612,2078.2,2077.5,8.08783189]
[1772724835271,2.44380612,2078.2,2077.6,6.77546204]
[1772724835472,3.11665825,2078.1,2077.7,6.77546204]
[1772724835671,3.11665825,2078.1,2077.5,1.31236985]
[1772724835869,3.11665825,2078.1,2077.6,8.2575469]
[1772724836069,2.44380612,2078.2,2077.7,6.77386842]
[1772724836272,3.11665825,2078.1,2077.8,6.77386842]
[1772724836468,3.11665825,2078.1,2077.9,6.77386842]
[1772724836769,3.11665825,2078.0,2077.6,1.48367848]
[1772724836977,2.44380612,2078.5,2077.7,6.75665548]
[1772724837173,0.39518326,2078.9,2077.8,3.70336378]
[1772724837174,2.44380612,2078.3,2077.8,3.70336378]
[1772724837476,2.44380612,2078.3,2077.1,1.4766321]
[1772724837776,4.43962903,2078.2,2077.1,1.4766321]
[1772724837976,2.44768262,2078.2,2077.1,1.4766321]
[1772724838277,2.44380612,2078.0,2077.1,1.4766321]
[1772724838472,2.44380612,2078.0,2077.1,0.00364606]
[1772724838675,4.43962903,2077.6,2077.1,0.00364606]
[1772724838974,2.44380612,2077.6,2076.2,2.65045615]
[1772724839173,2.44380612,2077.2,2076.2,2.65045615]
[1772724839677,1.99582291,2077.0,2076.2,2.65045615]
[1772724839870,2.44380612,2077.2,2076.2,2.65615099]
[1772724840077,2.44380612,2077.2,2076.3,2.65045615]
[1772724840277,2.44380612,2078.1,2076.3,2.65045615]
[1772724840474,2.44380612,2078.1,2076.7,2.65045615]
[1772724840879,4.43962903,2077.9,2076.7,2.65045615]
[1772724841072,2.44380612,2077.9,2076.7,2.65045615]
[1772724841279,2.44380612,2077.9,2076.6,14.93551034]
[1772724841280,2.44768262,2078.2,2077.0,2.65045615]
[1772724841479,0.0038765,2078.2,2077.2,2.65045615]
[1772724841672,2.44380612,2078.6,2077.4,2.65045615]
[1772724841877,2.44380612,2078.9,2077.6,2.65045615]
[1772724842075,2.44380612,2078.9,2077.8,2.65045615]
[1772724842271,0.39318127,2079.0,2077.2,8.55896649]
[1772724842272,2.44380612,2078.1,2077.2,8.55896649]
[1772724842475,2.44380612,2078.1,2076.9,2.65045615]
[1772724842476,2.68437612,2078.1,2076.9,2.65045615]
[1772724842778,1.99582291,2077.9,2076.9,2.65045615]
[1772724842971,1.99582291,2077.9,2076.9,2.65611231]
[1772724843176,2.4487925,2078.1,2077.1,2.65045615]
[1772724843376,1.99582291,2077.9,2077.1,2.65045615]
[1772724843576,2.4487925,2078.1,2077.1,2.65045615]
[1772724843770,2.4487925,2078.1,2076.9,2.65611231]
[1772724843771,2.44380612,2077.9,2076.9,2.65611231]
[1772724843976,2.44380612,2077.7,2076.9,0.00565616]
[1772724844175,2.44380612,2077.3,2076.3,5.90851034]
[1772724844379,2.44380612,2077.1,2076.3,5.90851034]
[1772724844581,2.44380612,2077.1,2076.1,1.89323666]
[1772724845178,2.44380612,2077.1,2076.1,0.00375399]
[1772724845676,2.44380612,2076.9,2076.1,0.00375399]
[1772724846176,2.44380612,2077.5,2076.1,1.86507914]
[1772724846479,2.44380612,2077.3,2076.1,1.86507914]
[1772724847282,2.44380612,2077.3,2076.1,0.00375399]
[1772724847874,2.44380612,2076.9,2076.1,0.00375399]
[1772724848178,2.44380612,2076.7,2075.3,5.98925]
[1772724848479,2.44380612,2076.7,2075.2,7.52172475]
[1772724848673,2.44380612,2076.5,2075.2,1.53247475]
[1772724848879,2.44380612,2076.3,2074.9,7.37592283]
[1772724849180,2.44380612,2077.6,2076.0,1.62208796]
[1772724849383,2.44380612,2077.6,2076.2,1.15447874]
[1772724849590,2.44380612,2077.6,2076.1,15.57279338]
[1772724849591,2.44380612,2077.6,2076.4,1.15447874]
[1772724849781,2.44380612,2077.6,2076.6,1.15447874]
[1772724849979,2.44878272,2077.6,2076.6,0.00609506]
[1772724852587,2.44380612,2077.4,2076.6,0.00609506]
[1772724852788,2.44380612,2077.2,2075.8,9.56647329]
[1772724852980,2.44380612,2077.2,2075.9,7.00735842]
[1772724853186,2.44380612,2077.5,2076.2,0.48489326]
[1772724853385,2.44380612,2077.5,2076.4,0.26748799]
[1772724853687,2.44380612,2077.5,2076.4,0.27093805]
[1772724853884,2.68444612,2077.5,2076.4,0.00345006]
[1772724854080,2.44380612,2077.4,2076.4,0.00345006]
[1772724854284,2.44380612,2077.2,2075.8,0.25678916]
[1772724854484,2.44380612,2077.2,2076.0,5.98925]
[1772724854694,2.44380612,2077.0,2076.1,6.54154904]
[1772724854881,2.44380612,2077.0,2076.2,6.54154904]
[1772724855087,2.44380612,2077.0,2076.3,6.54154904]
[1772724855392,2.44380612,2077.0,2076.4,6.54154904]
[1772724855692,2.44380612,2077.0,2076.3,0.00406294]
[1772724855693,2.44380612,2077.0,2076.5,4.8951899]
[1772724855891,2.44380612,2077.0,2076.3,0.00406294]
[1772724856882,2.44380612,2077.0,2076.3,1.24133879]
[1772724857294,2.44380612,2077.5,2076.3,1.24133879]
[1772724857885,2.44380612,2077.3,2076.3,0.00406294]
[1772724858186,2.44878272,2077.6,2076.4,1.38059682]
[1772724858390,2.44878272,2077.6,2076.5,0.93374257]
[1772724858589,2.44878272,2077.6,2076.6,0.93374257]
[1772724859387,2.44878272,2077.6,2076.5,6.5621307]
[1772724859586,2.44878272,2077.6,2076.6,0.55446611]
[1772724860586,1.24649707,2077.9,2076.7,0.33311867]
[1772724860784,0.24051,2078.7,2077.3,0.31772471]
[1772724860785,1.24649707,2078.6,2077.3,0.31772471]
[1772724860987,1.24649707,2078.6,2077.4,0.31772471]
[1772724861290,0.24052,2078.5,2077.2,6.00766459]
[1772724861488,1.24649707,2078.2,2076.9,6.00766459]
[1772724861687,1.24649707,2078.0,2076.8,0.10491441]
[1772724861892,1.24649707,2077.8,2076.7,6.00766459]
[1772724862093,1.24649707,2077.6,2076.5,6.10108532]
[1772724862291,1.24649707,2077.6,2076.5,0.09342073]
[1772724863192,1.24649707,2077.6,2076.3,15.08272753]
[1772724863988,1.24649707,2077.6,2076.4,6.00766459]
[1772724864391,1.24649707,2077.6,2076.3,6.01172753]
[1772724864587,1.24649707,2077.6,2076.4,15.07866459]
[1772724864886,1.24649707,2077.6,2076.4,9.071]
[1772724865488,1.24649707,2077.6,2076.3,6.01172753]
[1772724865686,1.24649707,2077.6,2076.4,9.071]
[1772724865889,1.24649707,2077.4,2076.3,0.00406294]
[1772724866097,1.24649707,2077.4,2076.3,9.07506294]
[1772724866293,1.24649707,2077.4,2076.3,0.00406294]
[1772724866891,0.84983102,2077.2,2076.3,0.00406294]
[1772724867493,0.84983102,2077.2,2076.4,6.44780562]
[1772724867695,0.84983102,2077.2,2076.5,6.44780562]
[1772724867898,0.84983102,2077.2,2076.3,0.00406294]
[1772724868096,0.24068,2077.1,2076.3,0.00406294]
[1772724868799,0.2407,2076.9,2076.3,0.00406294]
[1772724869404,0.24075,2076.5,2075.7,0.60249105]
[1772724870204,0.24069,2077.0,2075.7,0.60249105]
[1772724870407,0.24071,2076.8,2075.7,0.6071253]
[1772724870605,0.24074,2076.6,2075.7,0.6071253]
[1772724870901,5.92226,2076.6,2075.2,6.00766459]
[1772724871104,0.38384925,2076.0,2075.1,0.21551739]
[1772724871405,0.55248609,2075.5,2074.4,0.59772205]
[1772724872004,0.5571858,2075.5,2074.4,0.60302035]
[1772724872200,0.55248609,2075.4,2074.4,0.60302035]
[1772724872705,0.4166432,2075.5,2074.1,0.59772205]
[1772724872706,0.55248609,2075.2,2074.1,0.59772205]
[1772724872900,0.55248609,2075.0,2073.8,0.59772205]
[1772724873102,0.55248609,2074.8,2073.6,0.59772205]
[1772724873707,0.55248609,2074.8,2073.6,0.60336546]
[1772724873911,0.55248609,2074.5,2073.6,0.00564341]
[1772724874403,0.55248609,2074.5,2073.6,0.60336546]
[1772724876912,0.79344609,2074.7,2073.6,0.60336546]
[1772724877204,0.55248609,2075.4,2073.6,4.89990071]
[1772724877405,0.55248609,2075.3,2073.7,0.59772205]
[1772724878206,0.55248609,2075.3,2073.8,0.24106]
[1772724878408,0.55248609,2076.3,2074.7,0.59772205]
[1772724878706,0.55248609,2076.3,2074.9,0.59772205]
[1772724879502,0.55812922,2076.3,2074.9,0.59772205]
[1772724880009,0.00564313,2076.3,2075.1,0.59772205]
[1772724880207,0.00564313,2076.3,2075.3,0.59772205]
[1772724881503,0.55248609,2076.9,2075.5,0.59772205]
[1772724881707,0.55248609,2076.9,2075.7,0.59772205]
[1772724881908,0.55248609,2077.4,2075.7,0.59772205]
[1772724882412,0.55248609,2077.2,2075.7,0.59772205]
[1772724882613,0.55762745,2077.2,2075.7,0.59772205]
[1772724883110,0.55762745,2077.2,2075.9,0.59772205]
[1772724883315,0.55248609,2077.0,2076.0,0.59772205]
[1772724884009,0.55248609,2077.0,2075.3,0.59772205]
[1772724884211,0.55248609,2077.0,2075.5,0.59772205]
[1772724884414,0.55248609,2077.0,2075.7,0.59772205]
[1772724884611,0.55248609,2076.8,2075.7,0.59772205]
[1772724884808,0.55248609,2076.6,2075.4,0.59772205]
[1772724885008,0.55762745,2077.2,2075.6,0.59772205]
[1772724885417,0.55248609,2077.0,2075.6,0.59772205]
[1772724886013,0.55248609,2076.8,2075.6,0.59772205]
[1772724886411,0.55248609,2076.6,2075.6,0.59772205]
[1772724886610,0.55248609,2076.6,2075.2,0.59772205]
[1772724887109,0.55248609,2076.9,2075.4,0.59772205]
[1772724887513,0.55248609,2076.7,2075.4,0.59772205]
[1772724888606,0.24074,2076.6,2075.4,0.59772205]
[1772724888809,0.55248609,2076.5,2075.4,0.59772205]
[1772724889717,0.58707641,2076.3,2075.4,0.59772205]
[1772724889918,0.58707641,2076.3,2075.1,0.58195638]
[1772724890113,0.58707698,2076.1,2075.1,0.58195638]
[1772724890418,0.58707698,2076.5,2075.1,0.58195638]
[1772724891114,0.80179802,2076.8,2075.1,0.58195638]
[1772724891313,0.56107802,2076.7,2075.3,0.57813497]
[1772724892313,0.56107802,2076.7,2075.5,0.57813497]
[1772724892714,0.56107802,2076.5,2075.1,0.58195638]
[1772724892914,0.54545675,2075.8,2074.6,0.57813497]
[1772724893114,0.54545675,2075.7,2074.6,0.57813497]
[1772724893516,0.78631675,2075.6,2074.6,0.57813497]
[1772724893718,0.2408,2076.1,2074.6,0.57813497]
[1772724894018,0.54545675,2076.0,2074.8,0.57813497]
[1772724895615,0.0046692,2076.1,2075.0,0.57813497]
[1772724895819,0.54602051,2076.0,2075.1,6.09944774]
[1772724896016,0.54602051,2076.0,2074.9,0.57813497]
[1772724897622,0.54341508,2075.8,2074.9,0.57813497]
[1772724897823,0.54341508,2075.6,2074.6,0.58252094]
[1772724898316,0.78427508,2075.5,2074.6,0.58252094]
[1772724898513,0.54341508,2075.9,2074.6,0.58252094]
[1772724900027,0.5438551,2075.7,2074.6,0.58252094]
[1772724900229,0.5438551,2075.5,2074.6,0.00438597]
[1772724900430,0.5438551,2075.8,2074.6,0.58252094]
[1772724900619,0.5438551,2076.0,2074.8,0.57813497]
[1772724901223,0.0046692,2076.1,2075.0,0.57813497]
[1772724901424,0.0046692,2076.1,2075.2,0.57813497]
[1772724901828,0.54105485,2075.8,2074.6,0.58252094]
[1772724902126,0.54105485,2075.4,2074.6,0.58252094]
[1772724903022,0.54105485,2075.4,2074.6,0.00438597]
[1772724903429,0.54105485,2075.4,2074.6,0.58252094]
[1772724903629,6.86401522,2075.8,2074.6,0.58252094]
[1772724903923,0.24081,2076.0,2074.8,0.57813497]
[1772724904331,0.55668442,2076.1,2075.0,0.57813497]
[1772724904522,6.86868442,2076.9,2075.4,0.57813497]
[1772724904727,0.55668442,2076.8,2075.6,0.57813497]
[1772724905030,0.5592753,2076.4,2075.3,0.57813497]
[1772724905229,0.5592753,2076.2,2075.3,0.57813497]
[1772724905423,0.5592753,2076.1,2074.7,0.57813497]
[1772724905622,0.5592753,2075.7,2074.9,0.57813497]
[1772724905832,0.00540865,2076.1,2074.6,0.58252094]
[1772724905833,0.5592753,2075.5,2074.6,0.58252094]
[1772724906130,0.24085,2075.6,2074.6,0.00438597]
[1772724906131,0.5592753,2075.3,2074.6,0.00438597]
[1772724907227,0.55396679,2075.2,2074.6,0.00438597]
[1772724907428,6.86596679,2075.2,2074.6,0.00438597]
[1772724907627,0.55396679,2075.5,2074.6,0.58252094]
[1772724907828,6.86596679,2075.5,2074.6,0.58252094]
[1772724908036,6.312,2075.7,2074.8,0.57813497]
[1772724908336,6.86596679,2075.8,2074.8,0.57813497]
[1772724908728,0.55396679,2075.7,2074.8,0.57813497]
[1772724908927,0.78749781,2076.5,2075.0,0.57813497]
[1772724909137,6.85873781,2076.6,2075.2,0.57813497]
[1772724909330,6.312,2076.6,2075.5,0.57813497]
[1772724909527,0.54673781,2076.5,2075.6,6.11440632]
[1772724909727,0.54673781,2076.5,2074.8,9.99668555]
[1772724909728,0.54673781,2076.1,2074.9,0.57813497]
[1772724909931,5.92256,2076.5,2075.0,6.11375706]
[1772724909932,0.54673781,2075.9,2075.0,6.11375706]
[1772724910130,6.85873781,2075.9,2074.9,0.57813497]
[1772724910333,0.24083,2075.8,2075.0,6.69221653]
[1772724910529,0.54673781,2075.7,2074.7,0.57813497]
[1772724910727,6.31795489,2075.9,2074.9,0.57813497]
[1772724910728,0.00595489,2075.9,2074.9,0.57813497]
[1772724910927,0.00595489,2075.9,2075.1,0.57813497]
[1772724911535,0.00595489,2075.9,2075.3,0.57813497]
[1772724911936,0.55136841,2075.9,2074.9,0.57813497]
[1772724912236,0.55136841,2075.9,2075.1,0.57813497]
[1772724912433,0.00595489,2075.9,2075.1,0.57813497]
[1772724912829,0.00595489,2075.9,2075.3,0.57813497]
[1772724913231,0.00595489,2075.9,2075.0,0.57813497]
[1772724913232,0.54901535,2075.9,2075.0,0.57813497]
[1772724913835,0.54306046,2075.7,2074.7,0.57813497]
[1772724914033,0.54306046,2075.7,2074.8,6.045175]
[1772724914242,0.24085,2075.6,2074.7,0.57813497]
[1772724914539,0.54306046,2075.8,2074.9,0.57813497]
[1772724914739,0.41943641,2075.7,2074.9,0.57813497]
[1772724914938,0.54306046,2075.8,2074.9,0.57813497]
[1772724915339,0.00595489,2075.9,2075.1,0.57813497]
[1772724915540,0.00595489,2075.9,2075.3,0.57813497]
[1772724916439,0.54593097,2076.4,2075.5,0.57813497]
[1772724916641,0.4197518,2076.3,2075.5,0.57813497]
[1772724916838,0.54593097,2076.4,2075.5,0.57813497]
[1772724917038,0.96783541,2076.3,2075.5,0.57813497]
[1772724917234,0.54813022,2076.3,2075.5,0.57813497]
[1772724917436,0.55194952,2076.3,2075.5,0.57813497]
[1772724917942,0.0038193,2076.3,2075.5,0.57813497]
[1772724918137,1.20870562,2076.2,2075.5,0.57813497]
[1772724918343,0.96793168,2076.1,2075.2,0.57813497]
[1772724918543,0.41980146,2076.0,2075.3,6.05442237]
[1772724918744,6.312,2076.0,2075.2,0.57813497]
[1772724918945,6.312,2076.1,2075.4,0.58926835]
[1772724919240,0.96958128,2076.0,2075.1,0.58926835]
[1772724919439,0.24084,2075.7,2074.9,0.60147146]
[1772724919644,0.24079,2076.2,2074.9,0.60147146]
[1772724919839,6.73174192,2076.1,2075.0,0.60148347]
[1772724920038,0.41974192,2076.0,2075.0,0.60148347]
[1772724920435,0.24082,2075.9,2075.0,0.60148347]
[1772724920743,0.41986101,2075.8,2075.0,0.60148347]
[1772724920942,0.24082,2075.9,2075.0,0.60148347]
[1772724921137,0.4197539,2075.8,2075.0,0.60148347]
[1772724921340,0.24082,2075.9,2075.0,0.60148347]
[1772724922348,6.312,2076.2,2075.2,0.60404921]
[1772724922549,0.41981313,2076.1,2075.2,0.60404921]
[1772724922744,0.24082,2075.9,2075.0,4.6204048]
[1772724922948,0.41989556,2075.8,2075.1,0.60468473]
[1772724923248,0.24082,2075.9,2075.1,0.60468473]
[1772724923446,0.41985597,2075.8,2075.1,0.60468473]
[1772724923647,0.24076,2076.4,2075.1,0.60468473]
[1772724923846,0.24076,2076.4,2075.3,0.60468473]
[1772724924348,0.24078,2076.2,2075.3,0.60468473]
[1772724924946,0.24587656,2076.0,2074.9,0.59893818]
[1772724925148,0.00506656,2075.7,2074.9,0.59893818]
[1772724925347,0.24083,2075.8,2074.9,0.59893818]
[1772724925551,0.24966586,2076.3,2074.9,0.59893818]
[1772724925747,6.312,2076.2,2075.0,0.59893818]
[1772724926147,0.24079,2076.1,2075.0,0.59893818]
[1772724926347,0.24588656,2075.9,2075.0,0.59893818]
[1772724927054,0.24084,2075.7,2075.0,0.59893818]
[1772724927654,0.24089,2075.3,2074.6,0.60328415]
[1772724927849,6.312,2075.4,2074.6,0.60328415]
[1772724929247,0.24084,2075.8,2074.6,0.60328415]
[1772724929450,6.55284,2075.8,2074.6,0.60328415]
[1772724929651,6.312,2075.7,2074.6,0.60328415]
[1772724929951,0.24084,2075.8,2074.7,0.59889818]
[1772724930156,6.312,2075.7,2074.7,0.59889818]
[1772724930552,0.56150591,2076.0,2074.7,0.59889818]
[1772724930748,6.312,2075.9,2074.8,0.59889818]
[1772724931350,0.56150591,2075.8,2074.9,5.85553755]
[1772724931557,0.56150591,2075.8,2074.9,0.59889818]
[1772724931958,0.56150591,2075.6,2074.6,0.60328415]
[1772724932158,0.56150591,2075.6,2074.8,0.59889818]
[1772724932357,0.56150591,2075.6,2074.9,5.85574584]
[1772724932564,0.56150591,2075.6,2074.8,0.59889818]
[1772724932766,0.24084,2075.7,2074.9,6.45572932]
[1772724932963,0.80234591,2075.7,2074.9,0.59889818]
[1772724933159,0.56150591,2075.4,2074.6,0.00438597]
[1772724933360,0.56150591,2075.0,2074.2,4.01572007]
[1772724933565,0.56150591,2074.8,2074.1,0.59889818]
[1772724933863,6.312,2074.7,2074.3,0.59889818]
[1772724934466,0.56150591,2074.6,2073.7,0.59889818]
[1772724934660,0.56150591,2074.6,2073.8,0.59889818]
[1772724935463,0.56150591,2074.6,2073.8,0.60246371]
[1772724935863,0.241,2074.3,2073.4,0.59889818]
[1772724936163,0.56150591,2074.2,2073.1,0.59889818]
[1772724936358,6.87350591,2074.1,2073.1,0.59889818]
[1772724936554,6.87350591,2074.0,2073.1,0.59889818]
[1772724936768,6.312,2073.9,2073.1,0.59889818]
[1772724936967,6.87350591,2073.9,2073.1,0.60388008]
[1772724937157,0.80247591,2074.6,2073.3,0.59889818]
[1772724937467,6.313,2074.5,2073.5,0.59889818]
[1772724937669,0.00454038,2074.7,2073.7,0.59889818]
[1772724937867,0.56150591,2075.5,2073.9,0.59889818]
[1772724938164,6.313,2075.3,2074.1,0.59889818]
[1772724938361,0.56150591,2075.1,2073.7,0.59889818]
[1772724938557,0.56150591,2075.1,2073.9,0.59889818]
[1772724938761,6.313,2075.0,2073.9,0.59889818]
[1772724939059,6.31910743,2075.0,2073.9,0.59889818]
[1772724939266,6.88061334,2075.0,2073.9,0.59889818]
[1772724939564,6.313,2074.9,2074.1,0.59889818]
[1772724939765,6.87450591,2074.9,2074.1,0.59889818]
[1772724940160,0.00610743,2075.0,2074.1,0.59889818]
[1772724940367,6.313,2074.9,2074.1,0.59889818]
[1772724940571,0.00610743,2075.0,2074.3,0.59889818]
[1772724942872,0.56150591,2075.7,2074.3,0.59889818]
[1772724943168,0.80235591,2075.6,2074.3,0.59889818]
[1772724943561,0.56150591,2075.6,2074.3,0.59889818]
[1772724943764,0.56610288,2075.6,2074.3,0.59889818]
[1772724944270,0.56150591,2075.4,2074.3,0.59889818]
[1772724944569,0.00459697,2075.6,2074.3,0.59889818]
[1772724944570,0.56150591,2075.2,2074.3,0.59889818]
[1772724944770,6.313,2075.1,2074.3,0.59889818]
[1772724944967,6.87450591,2075.1,2074.3,0.59889818]
[1772724945169,0.56150591,2075.0,2074.3,0.59889818]
[1772724945464,6.313,2075.1,2074.3,0.59889818]
[1772724945669,0.56150591,2075.0,2073.7,0.59889818]
[1772724945970,0.56150591,2075.0,2073.8,0.59889818]
[1772724946272,7.11539591,2075.3,2073.9,0.59889818]
[1772724946468,0.56150591,2075.2,2073.9,0.59889818]
[1772724947175,6.55389,2075.3,2074.0,0.59889818]
[1772724947376,0.56150591,2075.2,2074.1,0.59889818]
[1772724948072,0.56150591,2075.0,2074.1,0.59889818]
[1772724948870,0.58608098,2074.8,2074.1,0.59889818]
[1772724949074,6.313,2074.7,2074.1,0.59889818]
[1772724949270,0.58608098,2075.1,2074.1,0.59889818]
[1772724949476,6.89908098,2075.0,2074.1,0.59889818]
[1772724949876,0.58608098,2074.9,2074.1,0.59889818]
[1772724950474,6.313,2075.0,2074.1,0.59889818]
[1772724950973,6.55388,2075.4,2074.3,0.59952084]
[1772724951276,0.58608098,2075.3,2074.3,0.59952084]
[1772724951677,0.00459697,2075.6,2074.4,0.59952084]
[1772724952074,0.59067795,2075.6,2074.4,0.59952084]
[1772724952378,0.24086,2075.5,2074.4,0.59952084]
[1772724953173,0.59067795,2075.6,2074.5,0.59952084]
[1772724953775,0.58608098,2075.5,2074.5,0.59952084]
[1772724953974,0.58608098,2075.3,2074.5,0.59952084]
[1772724954179,6.312,2075.4,2074.5,0.59952084]
[1772724954380,6.90267795,2075.6,2074.5,0.59952084]
[1772724956078,0.58608098,2075.5,2074.5,0.59952084]
[1772724956276,0.58608098,2075.4,2074.5,0.59952084]
[1772724956984,0.24087,2075.5,2074.5,0.59952084]
[1772724957278,6.312,2075.4,2074.5,0.59952084]
[1772724957480,0.24087,2075.5,2074.5,0.59952084]
[1772724957782,0.00459697,2075.6,2074.7,0.59952084]
[1772724957981,6.89808098,2076.1,2074.7,0.60523748]
[1772724958578,0.58608098,2076.1,2074.9,3.06674231]
[1772724958779,0.58608098,2076.1,2075.0,0.59952084]
[1772724958979,0.58608098,2076.0,2074.7,0.60523748]
[1772724959178,0.58608098,2076.0,2074.8,0.59952084]
[1772724959378,6.89808098,2076.0,2074.8,0.59952084]
[1772724959580,0.58608098,2075.9,2074.8,0.59952084]
[1772724960181,0.83222059,2076.1,2074.8,0.59952084]
[1772724960382,0.00533961,2076.1,2075.1,0.59952084]
[1772724960581,6.312,2076.6,2075.4,0.59952084]
[1772724960881,0.58608098,2076.3,2075.4,0.59952084]
[1772724961074,0.24076,2076.4,2075.4,0.59952084]
[1772724961275,0.58608098,2076.6,2075.4,0.59952084]
[1772724961473,0.58608098,2076.5,2075.4,0.59952084]
[1772724961781,0.58608098,2076.5,2075.0,0.59952084]
[1772724961782,0.58608098,2076.2,2075.0,0.59952084]
[1772724962779,0.58608098,2076.0,2075.0,0.59952084]
[1772724962984,0.58608098,2075.8,2074.7,0.60523748]
[1772724963184,0.58608098,2075.6,2074.7,0.60523748]
[1772724963682,6.89708098,2075.9,2074.7,0.60523748]
[1772724964080,0.58608098,2075.8,2074.7,0.60523748]
[1772724965780,0.58608098,2076.4,2074.8,0.59952084]
[1772724966086,0.00571657,2076.5,2075.2,0.59952084]
[1772724966386,0.00571657,2076.5,2075.4,0.59952084]
[1772724966581,0.58608098,2077.7,2076.2,0.59952084]
[1772724966784,0.58608098,2077.7,2076.5,0.59952084]
[1772724967082,6.89808098,2078.4,2077.2,0.59952084]
[1772724967584,0.58608098,2078.7,2077.5,0.59952084]
[1772724967781,0.00503872,2078.4,2077.5,0.59952084]
[1772724968086,0.5911197,2078.4,2077.5,0.59952084]
[1772724968280,0.5911197,2078.4,2077.2,0.60390084]
[1772724968482,0.58608098,2078.1,2077.2,0.00438]
[1772724968679,0.58608098,2077.9,2076.6,0.59952084]
[1772724968983,0.58608098,2077.7,2076.6,0.59952084]
[1772724969187,0.58608098,2078.3,2076.9,0.59952084]
[1772724969778,0.58608098,2078.3,2076.9,0.60534885]
[1772724970287,0.00503872,2078.4,2077.2,0.59952084]
[1772724971079,0.5911197,2078.4,2077.2,0.59952084]
[1772724971782,0.00503872,2078.4,2077.4,0.59952084]
[1772724972586,0.5911197,2078.4,2077.4,0.59952084]
[1772724972786,0.00503872,2078.4,2077.4,0.59952084]
[1772724974290,0.00503872,2078.4,2077.2,8.781]
[1772724974291,0.58608098,2079.1,2077.8,0.59952084]
[1772724975089,0.58970558,2079.1,2077.8,0.59952084]
[1772724975488,0.0036246,2079.1,2077.8,0.59952084]
[1772724975692,0.0036246,2079.1,2078.1,0.59952084]
[1772724975893,0.58608098,2079.8,2078.4,0.59952084]
[1772724976694,0.58608098,2080.1,2078.4,0.59952084]
[1772724976996,0.58608098,2079.6,2078.4,0.00341831]
[1772724977200,0.58608098,2079.4,2078.4,0.00341831]
[1772724977496,0.24045,2079.1,2077.7,0.59952084]
[1772724977700,0.58608098,2079.8,2078.1,0.59952084]
[1772724978103,0.58608098,2079.8,2078.6,0.59952084]
[1772724978494,0.58608098,2079.8,2078.6,0.6034723]
[1772724978897,0.58964263,2080.1,2079.0,0.60197415]
[1772724979595,0.00356165,2080.1,2079.0,0.60197415]
[1772724979804,0.00356165,2080.1,2079.1,0.60197415]
[1772724980491,0.00356165,2080.1,2079.4,0.60197415]
[1772724980895,0.62982366,2080.6,2079.4,0.60197415]
[1772724981295,0.62982366,2080.6,2078.6,5.92024146]
[1772724981296,0.62982366,2080.6,2078.6,3.07069377]
[1772724981503,6.15103,2080.7,2078.7,0.60197415]
[1772724981504,0.62982366,2080.1,2078.7,0.60197415]
[1772724981797,0.62982366,2079.8,2078.7,0.60197415]
[1772724981998,0.62982366,2080.0,2078.8,0.60197415]
[1772724982400,0.62982366,2079.9,2078.8,0.60197415]
[1772724983695,0.62982366,2079.9,2078.6,0.60592561]
[1772724984004,0.00582164,2080.1,2078.7,0.60197415]